bitfinex/quotes_SOLUSD_20230903
["timestamp","ask_amount","ask_price","bid_price","bid_amount"]
[1693701498515,59.28111063,19.549,19.531,20.0]
[1693701522334,59.28111063,19.549,19.528,20.0]
[1693701525842,59.28111063,19.549,19.53,37.58]
[1693701526049,59.28111063,19.549,19.531,20.0]
[1693701526731,4.28111063,19.549,19.531,20.0]
[1693701527945,59.28111063,19.549,19.531,20.0]
[1693701548549,4.28111063,19.549,19.531,45.65812577]
[1693701548747,4.28111063,19.549,19.532,80.65812577]
[1693701549954,59.28111063,19.549,19.532,80.65812577]
[1693701563157,59.28111063,19.549,19.532,96.23079721]
[1693701565167,4.28111063,19.551,19.532,96.23079721]
[1693701565352,59.28111063,19.551,19.532,96.23079721]
[1693701565553,4.28111063,19.551,19.532,96.23079721]
[1693701602381,37.58,19.55,19.532,15.57267144]
[1693701602576,4.28111063,19.549,19.532,15.57267144]
[1693701602891,59.28111063,19.549,19.532,15.57267144]
[1693701609001,59.28111063,19.549,19.53,130.93966408]
[1693701609307,59.28111063,19.549,19.531,75.0]
[1693701621102,59.28111063,19.549,19.527,15.15360982]
[1693701621311,73.71929071,19.548,19.521,25.65812577]
[1693701621497,59.28111063,19.547,19.521,25.65812577]
[1693701621698,37.58,19.54,19.521,25.65812577]
[1693701621897,4.28111063,19.539,19.521,25.65812577]
[1693701622409,4.28111063,19.539,19.522,55.0]
[1693701625793,4.28111063,19.539,19.521,25.65812577]
[1693701625794,4.28111063,19.539,19.52,155.72681814]
[1693701626106,59.28111063,19.539,19.521,20.0]
[1693701626307,59.28111063,19.539,19.521,45.65812577]
[1693701629617,59.28111063,19.539,19.522,55.0]
[1693701629810,4.28111063,19.539,19.522,80.65812577]
[1693701630006,4.28111063,19.539,19.523,25.65812577]
[1693701630206,4.28111063,19.539,19.524,55.0]
[1693701631405,59.28111063,19.539,19.524,55.0]
[1693701632416,4.28111063,19.539,19.524,55.0]
[1693701632613,4.28111063,19.539,19.525,20.0]
[1693701632816,4.28111063,19.545,19.53,37.58]
[1693701633204,4.28111063,19.545,19.531,20.0]
[1693701633920,59.28111063,19.545,19.531,20.0]
[1693701639515,59.28111063,19.545,19.53,37.58]
[1693701639721,59.28111063,19.545,19.531,20.0]
[1693701660340,4.28111063,19.545,19.531,20.0]
[1693701660541,4.28111063,19.545,19.532,55.0]
[1693701661039,4.28111063,19.549,19.532,55.0]
[1693701661941,59.28111063,19.549,19.532,55.0]
[1693701667939,4.28111063,19.549,19.532,80.65812577]
[1693701668245,4.28111063,19.549,19.54,37.58]
[1693701668545,4.28111063,19.551,19.541,20.0]
[1693701670743,4.28111063,19.551,19.54,37.58]
[1693701670935,4.28111063,19.557,19.541,20.0]
[1693701671135,59.28111063,19.557,19.541,20.0]
[1693701671539,4.28111063,19.555,19.541,20.0]
[1693701671742,59.28111063,19.555,19.541,20.0]
[1693701685567,59.21544708,19.555,19.541,20.0]
[1693701692178,4.21544708,19.555,19.541,20.0]
[1693701692555,4.21544708,19.555,19.542,55.0]
[1693701694364,4.21544708,19.559,19.542,55.0]
[1693701694561,59.21544708,19.559,19.542,55.0]
[1693701696076,4.21544708,19.557,19.542,55.0]
[1693701697081,59.21544708,19.558,19.542,55.0]
[1693701697377,4.21544708,19.558,19.542,55.0]
[1693701697675,59.21544708,19.558,19.542,55.0]
[1693701698078,94.1125,19.557,19.542,55.0]
[1693701698373,4.21544708,19.556,19.542,55.0]
[1693701698759,4.21544708,19.558,19.542,55.0]
[1693701699355,4.21544708,19.563,19.543,20.0]
[1693701699666,4.21544708,19.563,19.544,55.0]
[1693701699865,4.21544708,19.563,19.545,20.0]
[1693701700062,4.21544708,19.563,19.546,55.0]
[1693701700265,4.21544708,19.563,19.547,20.0]
[1693701700467,4.21544708,19.563,19.55,37.58]
[1693701700668,94.1125,19.565,19.551,55.0]
[1693701700669,4.21544708,19.564,19.551,55.0]
[1693701701063,4.21544708,19.569,19.551,55.0]
[1693701703277,59.21544708,19.569,19.551,55.0]
[1693701703474,155.75015343,19.574,19.551,55.0]
[1693701703687,37.58,19.57,19.552,4.64320522]
[1693701703975,37.58,19.57,19.554,4.64320522]
[1693701704175,37.58,19.57,19.556,4.64320522]
[1693701704375,37.58,19.57,19.554,4.64320522]
[1693701704579,37.58,19.57,19.556,4.64320522]
[1693701704765,37.58,19.57,19.554,4.64320522]
[1693701704964,37.58,19.57,19.555,55.0]
[1693701705379,37.58,19.57,19.556,4.64320522]
[1693701705775,37.58,19.57,19.557,55.0]
[1693701705975,37.58,19.57,19.556,2.85632643]
[1693701712376,0.521431,19.569,19.556,2.33489543]
[1693701712688,400.1,19.575,19.556,2.33489543]
[1693701712689,20.521431,19.574,19.556,2.33489543]
[1693701713376,0.521431,19.574,19.556,2.33489543]
[1693701713591,55.521431,19.574,19.556,2.33489543]
[1693701713890,0.521431,19.572,19.556,2.33489543]
[1693701714591,0.521431,19.573,19.556,2.33489543]
[1693701717489,0.521431,19.573,19.556,1.83489543]
[1693701719087,20.0,19.575,19.56,37.58]
[1693701719088,1.021431,19.574,19.56,37.58]
[1693701719673,1.021431,19.574,19.556,1.83489543]
[1693701721195,56.021431,19.574,19.556,1.83489543]
[1693701721496,1.021431,19.572,19.556,1.83489543]
[1693701724091,37.58,19.57,19.556,1.83489543]
[1693701724287,56.021431,19.569,19.551,23.66796104]
[1693701724988,90.8804,19.568,19.551,23.66796104]
[1693701725304,56.021431,19.567,19.551,23.66796104]
[1693701727001,56.021431,19.567,19.553,3.66796104]
[1693701731993,1.021431,19.567,19.553,3.66796104]
[1693701746919,1.021431,19.567,19.553,44.21192831]
[1693701747116,1.021431,19.567,19.554,55.0]
[1693701747318,90.8804,19.568,19.555,3.92317936]
[1693701747517,0.95168754,19.567,19.555,3.92317936]
[1693701752103,90.8804,19.568,19.555,3.92317936]
[1693701752912,37.58,19.57,19.555,3.92317936]
[1693701753317,0.521431,19.569,19.56,37.58]
[1693701753520,0.521431,19.571,19.561,3.92317936]
[1693701753822,20.0,19.573,19.561,3.92317936]
[1693701754017,112.792331,19.578,19.561,3.92317936]
[1693701754611,55.0,19.577,19.561,3.92317936]
[1693701754812,20.521431,19.576,19.561,3.92317936]
[1693701755117,55.0,19.575,19.56,37.58]
[1693701755322,20.521431,19.574,19.56,37.58]
[1693701759825,0.521431,19.574,19.561,20.0]
[1693701760023,0.521431,19.577,19.562,3.92317936]
[1693701760333,55.521431,19.577,19.562,3.92317936]
[1693701773638,53.521431,19.577,19.562,3.92317936]
[1693701777438,51.521431,19.577,19.562,3.92317936]
[1693701784642,49.521431,19.577,19.562,3.92317936]
[1693701789235,92.2709,19.578,19.562,58.92317936]
[1693701793228,6.0,19.581,19.562,58.92317936]
[1693701802844,37.58,19.58,19.562,3.92317936]
[1693701803148,22.21541075,19.579,19.562,4.6521098]
[1693701803351,157.05668317,19.579,19.562,3.92317936]
[1693701803553,55.0,19.578,19.561,20.0]
[1693701803850,62.23938317,19.577,19.561,20.0]
[1693701804032,55.0,19.576,19.561,20.0]
[1693701804554,55.0,19.576,19.562,2.55532767]
[1693701804756,55.0,19.576,19.558,20.0]
[1693701804946,55.0,19.576,19.559,59.45238158]
[1693701805451,55.0,19.576,19.561,4.94461036]
[1693701809037,37.58,19.57,19.561,4.94461036]
[1693701809459,37.58,19.57,19.559,4.94461036]
[1693701812463,22.21541075,19.575,19.559,4.94461036]
[1693701812662,55.0,19.574,19.559,4.94461036]
[1693701813345,98.4151,19.573,19.559,4.94461036]
[1693701813751,55.0,19.574,19.559,4.94461036]
[1693701813961,98.4151,19.572,19.559,4.94461036]
[1693701814660,55.0,19.574,19.559,4.94461036]
[1693701814861,98.4151,19.571,19.559,4.94461036]
[1693701815262,55.0,19.574,19.559,4.94461036]
[1693701815560,98.4151,19.573,19.559,4.94461036]
[1693701816660,55.0,19.574,19.559,4.94461036]
[1693701817544,99.3141,19.573,19.559,4.94461036]
[1693701818261,55.0,19.574,19.559,4.94461036]
[1693701818454,99.3141,19.573,19.559,4.94461036]
[1693701819055,55.0,19.574,19.559,4.94461036]
[1693701819257,91.3803,19.573,19.559,4.94461036]
[1693701822162,91.3803,19.573,19.56,92.58]
[1693701822357,91.3803,19.573,19.561,24.94461036]
[1693701822552,37.58,19.58,19.562,55.0]
[1693701822757,92.3306,19.579,19.563,4.94461036]
[1693701823053,92.3306,19.579,19.565,4.94461036]
[1693701823247,92.3306,19.579,19.563,4.94461036]
[1693701823548,92.3306,19.579,19.565,4.94461036]
[1693701826765,92.3306,19.579,19.566,55.0]
[1693701827065,92.3306,19.579,19.567,4.94461036]
[1693701833846,92.3306,19.579,19.566,55.0]
[1693701834051,92.3306,19.579,19.567,3.81772681]
[1693701834763,92.3306,19.579,19.563,4.94461036]
[1693701835962,55.0,19.578,19.563,4.94461036]
[1693701838473,92.3306,19.579,19.564,55.0]
[1693701838674,92.3306,19.579,19.565,4.94461036]
[1693701860493,92.3306,19.579,19.566,55.0]
[1693701860784,92.3306,19.579,19.567,4.94461036]
[1693701877694,6.0,19.581,19.57,37.58]
[1693701877904,6.0,19.581,19.571,134.58034936]
[1693701878088,6.0,19.581,19.571,160.23847513]
[1693701878595,6.0,19.581,19.571,232.92776718]
[1693701879895,6.0,19.581,19.572,131.22628495]
[1693701880094,6.0,19.581,19.573,162.31125291]
[1693701880290,6.0,19.581,19.574,131.22628495]
[1693701880595,6.0,19.581,19.575,162.31125291]
[1693701880798,6.0,19.581,19.576,72.68929205]
[1693701880994,6.0,19.581,19.577,116.65312714]
[1693701881194,6.0,19.581,19.578,20.0]
[1693701881390,6.0,19.581,19.579,55.0]
[1693701881590,6.0,19.581,19.58,20.0]
[1693701881786,6.0,19.581,19.58,75.0]
[1693701907515,6.0,19.581,19.58,131.70851678]
[1693701907719,91.3207,19.599,19.58,131.70851678]
[1693701908018,55.0,19.598,19.581,57.85508826]
[1693701908222,55.0,19.598,19.58,114.28851678]
[1693701908413,55.0,19.598,19.581,4.94461036]
[1693701917315,91.3207,19.599,19.581,4.94461036]
[1693701917623,91.3207,19.599,19.582,127.68929205]
[1693701917807,91.3207,19.599,19.582,210.0559346]
[1693701920429,39.88157222,19.605,19.582,210.0559346]
[1693701920727,75.0,19.604,19.582,210.0559346]
[1693701932237,26.65817207,19.608,19.59,37.58]
[1693701932420,26.65817207,19.608,19.591,75.0]
[1693701932627,93.759,19.609,19.591,75.0]
[1693701932829,93.759,19.609,19.591,20.0]
[1693701933724,55.0,19.608,19.591,20.0]
[1693701935434,55.0,19.608,19.59,37.58]
[1693701935638,55.0,19.608,19.591,75.0]
[1693701936140,55.0,19.608,19.591,20.0]
[1693701937724,55.0,19.608,19.583,20.0]
[1693701937926,55.0,19.608,19.584,111.70851678]
[1693701938231,55.0,19.608,19.585,20.0]
[1693701938427,55.0,19.608,19.586,55.0]
[1693701938627,55.0,19.608,19.587,20.0]
[1693701942342,37.58,19.6,19.582,131.22628495]
[1693701942543,37.58,19.6,19.577,58.42638661]
[1693701942735,146.6827,19.599,19.581,24.94461036]
[1693701943542,146.6827,19.599,19.581,4.94461036]
[1693701943741,146.6827,19.599,19.576,4.94461036]
[1693701943742,37.58,19.59,19.576,4.94461036]
[1693701943948,37.58,19.59,19.571,4.94461036]
[1693701944453,55.0,19.589,19.571,4.94461036]
[1693701944629,146.6827,19.589,19.571,4.94461036]
[1693701944944,146.6827,19.589,19.571,24.94461036]
[1693701945143,146.6827,19.589,19.571,4.94461036]
[1693701947347,146.6827,19.589,19.571,24.94461036]
[1693701947550,146.6827,19.589,19.572,55.0]
[1693701947732,146.6827,19.589,19.573,4.94461036]
[1693701969265,146.6827,19.589,19.572,4.94461036]
[1693701984088,146.6827,19.589,19.571,4.94461036]
[1693701984381,37.58,19.58,19.568,0.69177782]
[1693701984592,37.58,19.58,19.561,4.94461036]
[1693701984782,37.58,19.58,19.561,50.60273613]
[1693701985672,37.58,19.58,19.563,4.94461036]
[1693701985867,37.58,19.58,19.565,4.94461036]
[1693701986188,37.58,19.58,19.567,4.94461036]
[1693701986685,99.2171,19.579,19.565,4.94461036]
[1693701986879,99.2171,19.579,19.567,4.94461036]
[1693701989072,99.2171,19.579,19.562,4.94461036]
[1693701990477,99.2171,19.579,19.564,4.94461036]
[1693701990869,55.0,19.578,19.564,4.94461036]
[1693701991390,55.0,19.578,19.562,4.94461036]
[1693701994987,55.0,19.578,19.563,55.0]
[1693701995187,55.0,19.578,19.564,4.94461036]
[1693701995677,55.0,19.578,19.562,4.94461036]
[1693701995878,55.0,19.578,19.56,4.94461036]
[1693701997273,37.58,19.57,19.554,20.18080667]
[1693701997474,37.58,19.57,19.554,4.94461036]
[1693701998085,99.9853,19.569,19.554,4.94461036]
[1693701998590,37.58,19.57,19.554,4.94461036]
[1693701999489,99.9853,19.569,19.554,4.94461036]
[1693701999978,37.58,19.57,19.554,4.94461036]
[1693702000291,99.9853,19.569,19.554,4.94461036]
[1693702000874,37.58,19.57,19.554,4.94461036]
[1693702001180,99.661,19.569,19.554,4.94461036]
[1693702006486,99.661,19.569,19.555,20.0]
[1693702006686,99.661,19.569,19.556,4.94461036]
[1693702006896,99.661,19.569,19.56,37.58]
[1693702007198,99.661,19.569,19.561,79.94461036]
[1693702007582,37.58,19.58,19.561,79.94461036]
[1693702007783,94.046,19.579,19.561,79.94461036]
[1693702008381,55.0,19.578,19.561,79.94461036]
[1693702009180,94.046,19.579,19.561,79.94461036]
[1693702012391,94.046,19.579,19.561,105.60273613]
[1693702026695,94.046,19.579,19.562,0.49929668]
[1693702026897,94.046,19.579,19.562,5.44390704]
[1693702027096,94.046,19.579,19.563,55.36199053]
[1693702027305,94.046,19.579,19.564,4.94461036]
[1693702027499,94.046,19.579,19.565,55.0]
[1693702027696,94.046,19.579,19.566,4.94461036]
[1693702027899,94.046,19.579,19.567,55.0]
[1693702028098,94.046,19.579,19.568,4.94461036]
[1693702041126,94.046,19.579,19.561,45.65812577]
[1693702041127,55.0,19.578,19.562,4.94461036]
[1693702042722,55.0,19.578,19.563,55.0]
[1693702042925,55.0,19.578,19.564,4.94461036]
[1693702048717,55.0,19.578,19.562,4.94461036]
[1693702049023,94.046,19.579,19.562,30.60273613]
[1693702049227,94.046,19.579,19.563,80.65812577]
[1693702049529,94.046,19.579,19.564,4.94461036]
[1693702049835,94.046,19.579,19.566,4.94461036]
[1693702050129,94.046,19.579,19.564,4.94461036]
[1693702050327,94.046,19.579,19.566,4.94461036]
[1693702050518,94.046,19.579,19.564,4.94461036]
[1693702050719,94.046,19.579,19.566,4.94461036]
[1693702050921,94.046,19.579,19.564,4.94461036]
[1693702051228,94.046,19.579,19.566,4.94461036]
[1693702051725,94.046,19.579,19.564,4.94461036]
[1693702052035,94.046,19.579,19.566,4.94461036]
[1693702052217,94.046,19.579,19.566,24.94461036]
[1693702058832,94.046,19.579,19.567,20.0]
[1693702059031,94.046,19.579,19.568,4.94461036]
[1693702059333,94.046,19.579,19.565,4.94461036]
[1693702063132,94.046,19.579,19.565,45.27164152]
[1693702063319,94.046,19.579,19.567,4.94461036]
[1693702085045,99.4658,19.578,19.567,4.94461036]
[1693702085350,55.0,19.577,19.561,24.94461036]
[1693702091436,55.0,19.577,19.561,4.94461036]
[1693702091735,55.0,19.577,19.56,4.94461036]
[1693702093343,99.4658,19.578,19.56,42.52461036]
[1693702093645,99.4658,19.578,19.562,4.94461036]
[1693702093839,99.4658,19.578,19.564,4.94461036]
[1693702106662,99.4658,19.578,19.564,20.21594403]
[1693702114465,99.4658,19.578,19.566,4.94461036]
[1693702114858,99.4658,19.578,19.565,4.94461036]
[1693702119371,99.4658,19.578,19.563,20.54399717]
[1693702119568,99.4658,19.578,19.563,4.94461036]
[1693702127489,99.4658,19.578,19.564,40.45691789]
[1693702127687,99.4658,19.578,19.57,37.58]
[1693702127890,99.4658,19.578,19.571,24.94461036]
[1693702129193,41.63515584,19.589,19.571,24.94461036]
[1693702129491,91.9158,19.589,19.58,37.58]
[1693702129678,91.9158,19.589,19.581,24.94461036]
[1693702129883,37.58,19.6,19.581,24.94461036]
[1693702130193,91.9158,19.599,19.581,24.94461036]
[1693702130382,91.9158,19.599,19.582,55.0]
[1693702130584,91.9158,19.599,19.57,37.58]
[1693702130585,37.58,19.59,19.57,37.58]
[1693702130780,4.94461036,19.589,19.571,75.0]
[1693702131087,96.86041036,19.589,19.571,20.0]
[1693702131995,4.94461036,19.587,19.571,20.0]
[1693702132196,55.0,19.586,19.571,20.0]
[1693702132488,55.0,19.588,19.571,20.0]
[1693702132489,4.94461036,19.585,19.571,20.0]
[1693702132699,4.94461036,19.588,19.572,55.0]
[1693702134181,4.94461036,19.595,19.58,37.58]
[1693702134380,93.0776,19.595,19.58,37.58]
[1693702134587,4.94461036,19.594,19.58,37.58]
[1693702134791,93.0776,19.594,19.581,20.0]
[1693702134992,4.94461036,19.593,19.581,20.0]
[1693702135188,4.94461036,19.597,19.581,20.0]
[1693702135495,55.0,19.596,19.581,20.0]
[1693702135685,4.94461036,19.595,19.581,20.0]
[1693702135883,55.0,19.594,19.581,20.0]
[1693702136083,4.94461036,19.593,19.581,20.0]
[1693702137483,4.94461036,19.593,19.573,20.0]
[1693702137684,4.94461036,19.593,19.574,55.0]
[1693702137884,4.94461036,19.593,19.575,20.0]
[1693702138088,4.94461036,19.593,19.576,55.0]
[1693702138290,4.94461036,19.593,19.577,20.0]
[1693702138493,4.94461036,19.593,19.578,55.0]
[1693702138689,4.94461036,19.593,19.579,20.0]
[1693702142509,4.94461036,19.593,19.58,37.25]
[1693702142696,90.5922,19.608,19.581,86.25407482]
[1693702142898,90.5922,19.608,19.59,186.25]
[1693702143090,90.5922,19.608,19.591,163.34298167]
[1693702143413,15.1945863,19.62,19.593,4.94461036]
[1693702143598,90.5922,19.619,19.594,106.68517989]
[1693702143785,88.5922,19.619,19.595,20.25438582]
[1693702143984,440.14902961,19.625,19.597,4.94461036]
[1693702143985,37.25,19.62,19.597,4.94461036]
[1693702144186,37.25,19.62,19.597,5.19897022]
[1693702144411,37.25,19.62,19.599,4.94461036]
[1693702144597,49.07614,19.62,19.599,4.94461036]
[1693702145001,86.32614,19.62,19.599,4.94461036]
[1693702145307,27.951,19.619,19.591,4.94461036]
[1693702145494,7.952,19.617,19.591,4.94461036]
[1693702145699,86.81778,19.616,19.591,4.94461036]
[1693702145901,19.77078,19.615,19.591,4.94461036]
[1693702146097,75.0,19.614,19.591,4.94461036]
[1693702147308,75.0,19.614,19.591,24.94461036]
[1693702147610,85.15586,19.614,19.591,24.94461036]
[1693702148902,10.16417,19.613,19.591,24.94461036]
[1693702149106,75.0,19.612,19.591,24.94461036]
[1693702152199,37.25,19.61,19.591,4.94461036]
[1693702152410,37.25,19.61,19.586,0.25450272]
[1693702152411,65.17239,19.609,19.587,20.0]
[1693702152603,65.17239,19.609,19.588,4.94461036]
[1693702153400,20.0,19.608,19.586,0.25450272]
[1693702153600,55.0,19.607,19.586,0.25450272]
[1693702153918,20.0,19.606,19.586,0.25450272]
[1693702154120,55.0,19.605,19.586,0.25450272]
[1693702154301,20.0,19.604,19.586,0.25450272]
[1693702154618,55.0,19.603,19.586,5.19911308]
[1693702154915,20.0,19.602,19.586,5.19911308]
[1693702155117,55.0,19.601,19.586,5.19911308]
[1693702157416,20.0,19.602,19.587,55.0]
[1693702157719,20.0,19.603,19.588,4.94461036]
[1693702157912,55.0,19.602,19.588,4.94461036]
[1693702159312,55.0,19.602,19.586,0.25450272]
[1693702164518,98.3888,19.604,19.586,0.25450272]
[1693702165419,98.3888,19.604,19.586,25.19911308]
[1693702165628,98.3888,19.604,19.587,55.0]
[1693702165812,55.0,19.603,19.588,24.94461036]
[1693702168714,55.0,19.603,19.588,4.94461036]
[1693702189446,98.3888,19.604,19.59,37.22]
[1693702189744,98.3888,19.604,19.591,24.94461036]
[1693702190973,55.0,19.603,19.591,24.94461036]
[1693702191246,55.0,19.603,19.591,4.94461036]
[1693702191552,55.0,19.603,19.591,24.94461036]
[1693702194454,98.3888,19.604,19.591,24.94461036]
[1693702195739,55.0,19.603,19.591,24.94461036]
[1693702196055,147.5298,19.603,19.591,24.94461036]
[1693702202145,92.5298,19.603,19.591,24.94461036]
[1693702202543,10.17239,19.609,19.591,24.94461036]
[1693702202744,77.78355282,19.61,19.591,24.94461036]
[1693702203543,55.0,19.609,19.591,24.94461036]
[1693702207965,55.0,19.609,19.591,4.94461036]
[1693702207966,37.22,19.6,19.591,4.94461036]
[1693702208258,37.22,19.6,19.587,0.25448972]
[1693702208554,151.8733,19.599,19.587,0.25448972]
[1693702208745,151.8733,19.599,19.581,4.94461036]
[1693702208941,151.8733,19.599,19.581,24.94461036]
[1693702210651,151.8733,19.599,19.581,4.94461036]
[1693702210855,159.8323,19.599,19.581,24.94461036]
[1693702211157,151.8733,19.599,19.581,24.94461036]
[1693702211357,151.8733,19.599,19.581,4.94461036]
[1693702212365,162.06189,19.599,19.581,4.94461036]
[1693702220070,37.22,19.59,19.576,4.94461036]
[1693702220257,37.22,19.59,19.573,63.96951958]
[1693702220258,55.0,19.589,19.574,4.94461036]
[1693702220756,97.9872,19.588,19.574,4.94461036]
[1693702220952,55.0,19.587,19.574,4.94461036]
[1693702229671,97.9872,19.588,19.574,4.94461036]
[1693702231454,97.9872,19.588,19.575,55.0]
[1693702231662,97.9872,19.588,19.576,4.94461036]
[1693702233970,97.9872,19.588,19.58,37.22]
[1693702234175,97.9872,19.588,19.582,4.94461036]
[1693702234358,10.18859,19.598,19.582,4.94461036]
[1693702235166,96.0077,19.597,19.582,4.94461036]
[1693702235372,55.0,19.596,19.582,4.94461036]
[1693702246781,96.0077,19.597,19.582,4.94461036]
[1693702248191,55.0,19.596,19.582,4.94461036]
[1693702250497,96.0077,19.597,19.582,4.94461036]
[1693702257897,96.0077,19.597,19.583,55.0]
[1693702258111,96.0077,19.597,19.584,4.94461036]
[1693702259401,55.0,19.596,19.584,4.94461036]
[1693702259587,55.0,19.596,19.581,20.0]
[1693702259588,55.0,19.596,19.582,4.94461036]
[1693702268708,96.0077,19.597,19.582,4.94461036]
[1693702269998,55.0,19.596,19.582,4.94461036]
[1693702272308,96.0077,19.597,19.582,4.94461036]
[1693702272616,96.0077,19.597,19.584,4.94461036]
[1693702272795,96.0077,19.597,19.59,37.22]
[1693702273110,96.0077,19.597,19.591,24.94461036]
[1693702276912,40.85758039,19.606,19.591,24.94461036]
[1693702277113,55.0,19.605,19.591,24.94461036]
[1693702277313,146.6284,19.605,19.591,24.94461036]
[1693702293323,146.6284,19.605,19.583,24.94461036]
[1693702295219,146.6284,19.605,19.583,4.94461036]
[1693702295520,37.22,19.6,19.583,4.94461036]
[1693702295716,55.0,19.599,19.583,4.94461036]
[1693702296122,92.4444,19.598,19.583,4.94461036]
[1693702296318,55.0,19.597,19.583,4.94461036]
[1693702296622,55.0,19.597,19.581,4.94461036]
[1693702297022,55.0,19.597,19.581,24.94461036]
[1693702298930,55.0,19.597,19.582,25.65812577]
[1693702299115,55.0,19.597,19.583,4.94461036]
[1693702303546,92.4444,19.598,19.583,4.94461036]
[1693702304124,92.4444,19.598,19.59,37.22]
[1693702304427,92.4444,19.598,19.591,24.94461036]
[1693702304926,41.14752423,19.606,19.591,24.94461036]
[1693702305121,91.31701377,19.609,19.591,24.94461036]
[1693702305321,154.9965,19.608,19.591,24.94461036]
[1693702311129,99.9965,19.608,19.591,24.94461036]
[1693702311729,9.71459,19.609,19.591,24.94461036]
[1693702311934,93.1187,19.607,19.591,24.94461036]
[1693702312733,55.0,19.606,19.591,24.94461036]
[1693702341456,55.0,19.606,19.591,4.94461036]
[1693702341958,55.0,19.606,19.591,24.94461036]
[1693702361169,55.0,19.606,19.591,4.94461036]
[1693702361376,55.0,19.606,19.591,24.94461036]
[1693702375483,95.11842776,19.606,19.591,24.94461036]
[1693702399905,95.11842776,19.606,19.591,4.94461036]
[1693702400208,20.0,19.605,19.584,4.94461036]
[1693702400388,55.0,19.604,19.584,4.94461036]
[1693702400590,20.0,19.603,19.584,4.94461036]
[1693702400804,55.0,19.602,19.582,4.94461036]
[1693702401806,95.4282,19.601,19.582,4.94461036]
[1693702402007,55.0,19.6,19.582,4.94461036]
[1693702411611,55.0,19.6,19.581,4.94461036]
[1693702411812,55.0,19.6,19.581,24.94461036]
[1693702412011,92.22,19.6,19.581,24.94461036]
[1693702426103,101.9473,19.6,19.581,24.94461036]
[1693702430513,9.73989,19.599,19.581,24.94461036]
[1693702430721,55.0,19.598,19.581,24.94461036]
[1693702433109,26.66461076,19.597,19.581,24.94461036]
[1693702433308,55.0,19.598,19.581,24.94461036]
[1693702433722,55.0,19.598,19.581,4.94461036]
[1693702433915,55.0,19.598,19.581,24.94461036]
[1693702435119,64.73989,19.598,19.581,24.94461036]
[1693702436617,9.73989,19.597,19.581,24.94461036]
[1693702436831,55.0,19.596,19.581,24.94461036]
[1693702438017,98.5784,19.595,19.581,24.94461036]
[1693702438331,55.0,19.594,19.581,24.94461036]
[1693702449935,96.41777323,19.594,19.581,24.94461036]
[1693702497382,98.5784,19.595,19.581,24.94461036]
[1693702497886,98.5784,19.595,19.583,4.94461036]
[1693702500791,98.5784,19.595,19.583,61.82523347]
[1693702501084,37.22,19.61,19.585,4.94461036]
[1693702501289,98.5027,19.605,19.591,4.94461036]
[1693702501479,98.5027,19.605,19.591,24.94461036]
[1693702502369,98.5027,19.605,19.592,55.0]
[1693702502575,98.5027,19.605,19.593,4.94461036]
[1693702502774,37.22,19.61,19.593,4.94461036]
[1693702502990,92.6602,19.609,19.593,4.94461036]
[1693702503486,55.0,19.608,19.593,4.94461036]
[1693702515586,55.0,19.608,19.592,4.94461036]
[1693702516480,114.126,19.608,19.592,4.94461036]
[1693702516686,114.126,19.608,19.58,37.22]
[1693702516687,37.22,19.6,19.58,37.22]
[1693702516983,55.0,19.599,19.582,4.94461036]
[1693702517292,151.6708,19.599,19.582,4.94461036]
[1693702517485,151.6708,19.599,19.581,4.94461036]
[1693702517692,26.66661866,19.598,19.579,15.3782542]
[1693702517882,55.0,19.597,19.581,4.94461036]
[1693702518282,96.6708,19.599,19.581,4.94461036]